bitfinex/quotes_BTCUSD_20250109
["timestamp","ask_amount","ask_price","bid_price","bid_amount"]
[1736411656064,0.00032101,93090.0,93086.0,0.214854]
[1736411656499,0.00032101,93090.0,93088.0,0.21485]
[1736411656701,0.21516801,93090.0,93074.0,0.214882]
[1736411656934,0.00032101,93090.0,93059.0,0.214915]
[1736411657135,0.214857,93085.0,93069.0,0.214893]
[1736411657344,0.214857,93085.0,93060.0,0.10537406]
[1736411657345,0.214857,93085.0,93061.0,0.214912]
[1736411657553,0.0465,93082.0,93034.0,0.0761]
[1736411657759,0.10429976,93081.0,93035.0,0.1053742]
[1736411657965,0.10429976,93081.0,93050.0,0.214936]
[1736411657966,0.214904,93065.0,93050.0,0.214936]
[1736411658368,0.10429976,93081.0,93051.0,0.10429976]
[1736411658566,0.10429976,93081.0,93036.0,0.01815593]
[1736411658567,0.15,93080.0,93045.0,0.214949]
[1736411658791,0.214926,93056.0,93039.0,0.214963]
[1736411659001,0.214926,93056.0,93041.0,0.214958]
[1736411659407,0.023,93075.0,93033.0,0.214976]
[1736411659605,0.1,93076.0,93033.0,0.214976]
[1736411659606,0.214944,93048.0,93033.0,0.214976]
[1736411660025,0.173,93073.0,93033.0,0.21512664]
[1736411660235,0.214939,93050.0,93033.0,0.21512664]
[1736411660479,0.173,93073.0,93033.0,0.00015064]
[1736411660480,0.22879976,93049.0,93033.0,0.00015064]
[1736411660667,0.22879976,93049.0,93033.0,0.00115064]
[1736411660668,0.214974,93035.0,93033.0,0.00115064]
[1736411660869,0.214974,93035.0,93033.0,0.00015064]
[1736411661677,0.10429976,93034.0,93033.0,0.00015064]
[1736411662845,0.25429976,93034.0,93033.0,0.00015064]
[1736411663085,0.25429976,93034.0,92982.0,0.06436]
[1736411663086,0.1,93025.0,92971.0,0.0761]
[1736411663322,0.215046,93004.0,92986.0,0.215085]
[1736411663531,0.215046,93004.0,92986.0,0.185085]
[1736411663785,0.215057,92999.0,92986.0,0.185085]
[1736411663988,0.21506,92997.0,92974.0,0.00058794]
[1736411664190,0.21506,92997.0,92976.0,0.15]
[1736411664395,0.21506,92997.0,92977.0,0.00107536]
[1736411664599,0.21470416,92997.0,92978.0,0.215104]
[1736411665211,0.215108,92977.0,92974.0,0.00058794]
[1736411665424,0.215109,92976.0,92974.0,0.00058794]
[1736411665643,0.215024,93013.0,92975.0,0.10537529]
[1736411665848,0.002,93004.0,92999.0,0.215056]
[1736411666052,0.003,93004.0,93001.0,0.215051]
[1736411666264,0.001,93004.0,93003.0,0.215046]
[1736411666459,0.0112834,93023.0,93012.0,0.215025]
[1736411666693,0.0112834,93023.0,93003.0,0.10429976]
[1736411666897,0.002,93004.0,93003.0,0.10429976]
[1736411667198,0.003,93004.0,93003.0,0.10429976]
[1736411667375,0.002,93004.0,93003.0,0.10429976]
[1736411667577,0.002,93004.0,93003.0,0.1048026]
[1736411667729,0.003,93023.0,93003.0,0.1048026]
[1736411667936,0.215005,93021.0,93003.0,0.00050284]
[1736411668198,0.215017,93016.0,93003.0,0.00050284]
[1736411668976,0.215007,93020.0,93004.0,0.215044]
[1736411669239,0.215009,93019.0,93004.0,0.215044]
[1736411669640,0.430019,93019.0,93003.0,0.00050284]
[1736411669869,0.215009,93019.0,93003.0,0.21554784]
[1736411670473,0.22737274,93019.0,93003.0,0.21554784]
[1736411670696,0.215041,93006.0,93003.0,0.00050284]
[1736411671970,0.430082,93006.0,93003.0,0.00050284]
[1736411672557,0.215014,93017.0,93003.0,0.00050284]
[1736411672763,0.001,93006.0,93004.0,0.215044]
[1736411673113,0.214993,93027.0,93014.0,0.215019]
[1736411673290,0.001,93006.0,93004.0,0.215043]
[1736411673598,0.002,93006.0,93005.0,0.02262965]
[1736411673806,0.001,93006.0,93005.0,0.00107507]
[1736411674010,0.214984,93030.0,93006.0,0.215039]
[1736411674250,0.15,93032.0,93007.0,0.1053748]
[1736411674470,0.0777,93037.0,93007.0,0.00107504]
[1736411674471,0.01098442,93034.0,93007.0,0.00107504]
[1736411674677,0.11528418,93034.0,93013.0,0.215021]
[1736411674880,0.21499,93028.0,93013.0,0.430042]
[1736411675090,0.21499,93028.0,93013.0,0.215021]
[1736411675301,0.01125379,93037.0,93014.0,0.00107502]
[1736411675517,0.01125379,93037.0,93022.0,0.215001]
[1736411675739,0.214961,93040.0,93022.0,0.215001]
[1736411675951,0.002,93030.0,93023.0,0.0215001]
[1736411676167,0.002,93030.0,93026.0,0.214991]
[1736411676412,0.003,93028.0,93027.0,0.00107481]
[1736411676637,0.214923,93057.0,93027.0,0.00107481]
[1736411676638,0.214923,93057.0,93041.0,0.214958]
[1736411676863,0.01121388,93055.0,93041.0,0.214958]
[1736411677096,0.214928,93054.0,93041.0,0.214958]
[1736411677327,0.214923,93057.0,93042.0,0.0429925]
[1736411677559,0.214924,93056.0,93043.0,0.214954]
[1736411677785,0.06508,93068.0,93027.0,0.10429976]
[1736411677786,0.214907,93064.0,93048.0,0.21494]
[1736411677996,0.21505756,93064.0,93048.0,0.21494]
[1736411678793,0.214918,93059.0,93048.0,0.21494]
[1736411679220,0.002,93054.0,93048.0,0.21494]
[1736411679792,0.214918,93059.0,93044.0,0.214949]
[1736411679999,0.15,93061.0,93048.0,0.214941]
[1736411680200,0.429817,93063.0,93031.0,0.079]
[1736411680401,0.00015056,93064.0,93032.0,0.10537437]
[1736411680619,0.00015056,93064.0,93043.0,0.214952]
[1736411680827,0.00015056,93064.0,93048.0,0.002]
[1736411681210,0.00015056,93064.0,93048.0,0.216942]
[1736411681337,0.214908,93063.0,93048.0,0.216942]
[1736411681542,0.15,93062.0,93048.0,0.23040874]
[1736411681787,0.214912,93061.0,93048.0,0.23040874]
[1736411682002,0.15,93062.0,93048.0,0.23040874]
[1736411682209,0.00015056,93064.0,93049.0,0.0010746]
[1736411682415,0.00015056,93064.0,93049.0,0.214939]
[1736411682819,0.00015056,93064.0,93050.0,0.00107455]
[1736411683023,0.214879,93076.0,93051.0,0.214935]
[1736411683231,0.002,93062.0,93053.0,0.214931]
[1736411683831,0.214889,93071.0,93053.0,0.214931]
[1736411684058,0.003,93064.0,93053.0,0.214931]
[1736411684273,0.005,93064.0,93060.0,0.214914]
[1736411684482,0.005,93064.0,93061.0,0.214912]
[1736411684679,0.002,93062.0,93061.0,0.214912]
[1736411685849,0.002,93071.0,93061.0,0.214912]
[1736411686075,0.002,93071.0,93062.0,0.05341378]
[1736411686270,0.001,93064.0,93061.0,0.214912]
[1736411686518,0.16113321,93076.0,93050.0,0.00015056]
[1736411686519,0.15,93074.0,93050.0,0.00015056]
[1736411686725,0.21491,93062.0,93061.0,0.001]
[1736411687034,0.46920976,93062.0,93061.0,0.007]
[1736411687234,0.214935,93051.0,93050.0,0.00015056]
[1736411687782,0.214935,93051.0,92998.0,0.01120664]
[1736411687783,0.15,93048.0,93009.0,0.215032]
[1736411687992,0.023,93043.0,93019.0,0.00015072]
[1736411688195,0.2304,93044.0,93019.0,0.00015072]
[1736411688196,0.429999,93024.0,93019.0,0.00015072]
[1736411689271,0.15,93023.0,93019.0,0.00015072]
[1736411689484,0.15,93021.0,93019.0,0.00015072]
[1736411689682,0.215007,93020.0,93019.0,0.00015072]
[1736411689884,0.365007,93020.0,93019.0,0.00115072]
[1736411690095,0.214995,93026.0,93019.0,0.00115072]
[1736411690332,0.214906,93064.0,93019.0,0.00115072]
[1736411690333,0.215002,93022.0,93019.0,0.00015072]
[1736411690542,0.215007,93020.0,93019.0,0.00415072]
[1736411690742,0.53438676,93020.0,93019.0,0.00015072]
[1736411691165,0.53538676,93020.0,93019.0,0.00015072]
[1736411691622,0.151,93020.0,93019.0,0.00015072]
[1736411691822,0.001,93020.0,93019.0,0.00015072]
[1736411692527,0.002,93022.0,93019.0,0.00015072]
[1736411692883,0.001,93020.0,93019.0,0.00015072]
[1736411693087,0.003,93020.0,93019.0,0.00015072]
[1736411693342,0.002,93020.0,93019.0,0.00015072]
[1736411693742,0.001,93020.0,93019.0,0.00015072]
[1736411693943,0.002,93022.0,93019.0,0.00015072]
[1736411694304,0.001,93020.0,93019.0,0.00015072]
[1736411694508,0.002,93022.0,93020.0,0.215007]
[1736411694727,0.002,93022.0,93021.0,0.10537468]
[1736411695343,0.214949,93045.0,93031.0,0.21498]
[1736411696637,0.215949,93045.0,93031.0,0.21498]
[1736411696849,0.214949,93045.0,93031.0,0.21498]
[1736411697144,0.217949,93045.0,93031.0,0.21498]
[1736411697343,0.003,93045.0,93032.0,0.0429968]
[1736411697583,0.002,93045.0,93033.0,0.429954]
[1736411697789,0.003,93045.0,93034.0,0.00107475]
[1736411697964,0.003,93045.0,93040.0,0.21496]
[1736411698171,0.003,93045.0,93035.0,0.214972]
[1736411698371,0.001,93045.0,93037.0,0.214968]
[1736411698583,0.10429976,93044.0,93018.0,0.215011]
[1736411698794,0.10429976,93044.0,93008.0,0.215034]
[1736411699009,0.15,93043.0,93007.0,0.215035]
[1736411699217,0.214986,93030.0,93017.0,0.215013]
[1736411699427,0.214976,93034.0,93012.0,0.215023]
[1736411699635,0.15,93041.0,93013.0,0.00107497]
[1736411699794,0.214986,93030.0,93012.0,0.215023]
[1736411699969,0.214986,93030.0,93019.0,0.00115072]
[1736411700170,0.214965,93038.0,93019.0,0.00115072]
[1736411700379,0.214957,93042.0,93025.0,0.214994]
[1736411700380,0.2149088,93040.0,93025.0,0.214994]
[1736411700596,0.01094458,93042.0,93027.0,0.214991]
[1736411700795,0.21495,93045.0,93031.0,0.21498]
[1736411701036,0.21494,93049.0,93031.0,0.21498]
[1736411701250,0.214949,93045.0,93031.0,0.21498]
[1736411701704,0.21494,93049.0,93031.0,0.21498]
[1736411701705,0.002,93034.0,93031.0,0.21498]
[1736411702137,0.22599247,93049.0,93031.0,0.21498]
[1736411702345,0.003,93034.0,93031.0,0.24411103]
[1736411702540,0.003,93045.0,93031.0,0.24411103]
[1736411702757,0.003,93045.0,93009.0,0.215031]
[1736411702758,0.15,93028.0,93009.0,0.215031]
[1736411702991,0.215001,93023.0,93004.0,0.215044]
[1736411703203,0.430002,93023.0,93004.0,0.215044]
[1736411703415,0.214942,93048.0,93005.0,0.00107502]
[1736411703635,0.214942,93048.0,93031.0,0.21898]
[1736411703845,0.214954,93043.0,93031.0,0.004]
[1736411704050,0.214954,93043.0,93028.0,0.214988]
[1736411704276,0.214963,93039.0,93022.0,0.215002]
[1736411704498,0.214965,93038.0,93021.0,0.215005]
[1736411704922,0.214945,93047.0,93019.0,0.00415072]
[1736411704923,0.15,93036.0,93019.0,0.00415072]
[1736411705127,0.15,93024.0,93019.0,0.00515072]
[1736411705328,0.14946871,93024.0,93019.0,0.00515072]
[1736411705538,0.215,93023.0,93019.0,0.00015072]
[1736411705786,0.31927376,93035.0,93019.0,0.00015072]
[1736411706017,0.002,93038.0,93020.0,0.02151657]
[1736411706224,0.002,93038.0,93033.0,0.214977]
[1736411706841,0.002,93038.0,93033.0,0.429954]
[1736411707052,0.214942,93049.0,93033.0,0.429954]
[1736411707267,0.004,93038.0,93033.0,0.429954]
[1736411707476,0.214942,93049.0,93033.0,0.429954]
[1736411707678,0.214942,93049.0,93035.0,0.214972]
[1736411708318,0.09487981,93053.0,93040.0,0.21496]
[1736411708985,0.09487981,93053.0,93034.0,0.0429954]
[1736411708986,0.01089601,93062.0,93034.0,0.0429954]
[1736411709196,0.003,93049.0,93036.0,0.21497]
[1736411709467,0.003,93049.0,93048.0,0.214942]
[1736411709676,0.364958,93041.0,93040.0,0.001]
[1736411709883,0.15,93040.0,93021.0,0.215004]
[1736411710285,0.15,93038.0,93034.0,0.001]
[1736411710504,0.15,93038.0,93004.0,0.215044]
[1736411710505,0.15,93038.0,93025.0,0.214994]
[1736411710717,0.15011862,93038.0,93000.0,0.30467367]
[1736411710934,0.15011862,93038.0,93025.0,0.214993]
[1736411711165,0.15011862,93038.0,93025.0,0.429988]
[1736411711375,0.00011862,93038.0,93030.0,0.214984]
[1736411712000,0.214972,93035.0,92996.0,0.215062]
[1736411712222,0.215022,93014.0,92996.0,0.215062]
[1736411712654,0.215,93023.0,92997.0,0.00107515]
[1736411712958,0.215012,93018.0,93003.0,0.215046]
[1736411713410,0.215002,93022.0,93003.0,0.215046]
[1736411713589,0.005,93014.0,93001.0,0.21505]
[1736411713794,0.005,93014.0,92999.0,0.215054]
[1736411714140,0.002,93014.0,92999.0,0.215054]
[1736411714350,0.002,93014.0,93001.0,0.215051]
[1736411714779,0.002,93014.0,93002.0,0.215049]
[1736411715008,0.215006,93021.0,93006.0,0.215038]
[1736411715207,0.001,93018.0,93006.0,0.215038]
[1736411715762,0.001,93018.0,92993.0,0.215067]
[1736411715763,0.15,93002.0,92978.0,0.215103]
[1736411715961,0.215093,92984.0,92974.0,8.51e-05]
[1736411716926,0.215093,92984.0,92981.0,0.00058794]
[1736411717337,0.215093,92984.0,92981.0,0.00358794]
[1736411717576,0.215093,92984.0,92981.0,0.00058794]
[1736411717931,0.216093,92984.0,92981.0,0.00058794]
[1736411718398,0.15,92979.0,92974.0,8.51e-05]
[1736411718559,0.15,92979.0,92974.0,0.00015072]
[1736411718560,0.15,92975.0,92974.0,0.00015072]
[1736411718730,0.25429976,92975.0,92974.0,0.00015072]
[1736411718931,0.27729976,92975.0,92974.0,0.00015072]
[1736411719515,0.25429976,92975.0,92974.0,0.00215072]
[1736411719953,0.25429976,92975.0,92974.0,0.00015072]
[1736411720184,0.26429976,92975.0,92974.0,0.00115072]
[1736411720391,0.01,92975.0,92974.0,0.00115072]
[1736411721493,0.47941076,92975.0,92974.0,0.00115072]
[1736411721699,0.365118,92972.0,92971.0,8.51e-05]
[1736411721901,0.46941776,92972.0,92971.0,0.00019311]
[1736411722117,0.45941776,92972.0,92971.0,0.00019311]
[1736411722968,0.46241776,92972.0,92971.0,0.00019311]
[1736411723381,0.358118,92972.0,92971.0,0.00019311]
[1736411723597,0.363118,92972.0,92971.0,0.00019311]
[1736411723810,0.008,92972.0,92971.0,0.00019311]
[1736411725850,0.008,92972.0,92971.0,0.17014413]
[1736411726062,0.008,92972.0,92971.0,0.17014399]
[1736411726285,0.008,92972.0,92971.0,0.24954399]
[1736411726493,0.005,93000.0,92993.0,0.215068]
[1736411726693,0.006,92972.0,92971.0,0.46338862]
[1736411727443,0.005,93000.0,92971.0,0.46338862]
[1736411727691,0.10929976,93000.0,92973.0,0.215116]
[1736411728097,0.21506,92998.0,92980.0,0.215098]
[1736411728300,0.10929976,93000.0,92989.0,0.215076]
[1736411728301,0.005,93000.0,92989.0,0.215076]
[1736411728758,0.005,93000.0,92989.0,0.430154]
[1736411728919,0.005,93000.0,92990.0,0.0430154]
[1736411729115,0.005,93000.0,92989.0,0.215076]
[1736411729116,0.005,93000.0,92974.0,0.10429976]
[1736411729295,0.005,93000.0,92975.0,0.0010753]
[1736411729492,0.005,93000.0,92995.0,0.215065]
[1736411729493,0.007,93000.0,92995.0,0.215065]
[1736411729837,0.007,93000.0,92995.0,0.43013]
[1736411730449,0.01,93000.0,92995.0,0.43013]
[1736411730646,0.007,93000.0,92997.0,0.43012]
[1736411730881,0.005,93000.0,92997.0,0.43012]
[1736411731080,0.15,93026.0,92997.0,0.21506]
[1736411731307,0.15,93023.0,92996.0,0.043013]
[1736411731513,0.002,93000.0,92999.0,0.215056]
[1736411731727,0.002,93000.0,92999.0,0.31935576]
[1736411732352,0.364991,93027.0,93011.0,0.215028]
[1736411732581,0.46929076,93027.0,93011.0,0.215028]
[1736411732697,0.003,93025.0,93011.0,0.215028]
[1736411732928,0.003,93025.0,93020.0,0.215006]
[1736411733556,0.003,93025.0,93020.0,0.430012]
[1736411733758,0.09487981,93054.0,93043.0,0.01104798]
[1736411734124,0.00015056,93048.0,93043.0,0.01104798]
[1736411734338,0.00015056,93048.0,93043.0,0.22600098]
[1736411734548,0.00015056,93048.0,93044.0,0.0226001]
[1736411734759,0.00015056,93048.0,93044.0,0.214952]
[1736411735005,0.00015056,93048.0,93045.0,0.10429976]
[1736411735245,0.00015056,93048.0,93046.0,0.21602156]
[1736411735488,0.00215056,93048.0,93047.0,0.33059976]
[1736411735969,0.00515056,93048.0,93047.0,0.35359976]
[1736411736210,0.00515056,93048.0,93047.0,0.43015443]
[1736411736487,0.00015056,93048.0,93047.0,0.49567443]
[1736411737250,0.00015056,93048.0,93047.0,0.50467443]
[1736411738425,0.00015056,93048.0,93047.0,0.50867443]
[1736411739211,0.00015056,93048.0,93047.0,0.53167443]
[1736411739480,0.0001702,93078.0,93061.0,0.364912]
[1736411739726,0.0001702,93078.0,93061.0,0.55260296]
[1736411740467,0.0001702,93078.0,93061.0,0.57560296]
[1736411740943,0.0001702,93078.0,93061.0,0.62712296]
[1736411741199,0.0001702,93078.0,93061.0,0.47712296]
[1736411741689,0.0001702,93078.0,93061.0,0.41160296]
[1736411742436,0.0001702,93078.0,93061.0,0.40760296]
[1736411742937,0.0001702,93078.0,93061.0,0.41160296]
[1736411743176,0.0001702,93078.0,93061.0,0.40560296]
[1736411743417,0.0001702,93078.0,93061.0,0.41260296]
[1736411743900,0.0001702,93078.0,93061.0,0.40560296]
[1736411744142,0.0001702,93078.0,93061.0,0.41460296]
[1736411744403,0.0001702,93078.0,93061.0,0.40560296]
[1736411744674,0.0001702,93078.0,93061.0,0.003]
[1736411744935,0.0001702,93078.0,93061.0,0.214912]
[1736411745367,0.0001702,93078.0,93061.0,0.219912]
[1736411745609,0.0001702,93078.0,93061.0,0.32421176]
[1736411745852,0.0001702,93078.0,93061.0,0.37312554]
[1736411746101,0.0001702,93078.0,93061.0,0.31921176]
[1736411746361,0.0001702,93078.0,93061.0,0.32821176]
[1736411746630,0.0001702,93078.0,93061.0,0.31921176]
[1736411746872,0.0001702,93078.0,93061.0,0.33021176]
[1736411747030,0.0001702,93078.0,93061.0,0.32221176]
[1736411747299,0.0001702,93078.0,93061.0,0.37592554]
[1736411747440,0.0001702,93078.0,93061.0,0.38392554]
[1736411748059,0.0001702,93078.0,93061.0,0.38092554]
[1736411748507,0.0001702,93078.0,93061.0,0.38392554]
[1736411752000,0.0001702,93078.0,93061.0,0.53392554]
[1736411752438,0.0001702,93078.0,93061.0,0.55692554]
[1736411758487,4e-07,93062.0,93061.0,0.83762554]
[1736411758696,0.0001702,93078.0,93077.0,0.364875]
[1736411758912,0.00032084,93078.0,93077.0,0.64711896]
[1736411759139,8.4e-07,93078.0,93077.0,0.92781896]
[1736411759770,8.4e-07,93078.0,93077.0,1.47261896]
[1736411760033,8.4e-07,93078.0,93077.0,1.52131896]
[1736411760231,4e-07,93090.0,93089.0,0.587848]
[1736411760442,0.0001706,93099.0,93096.0,0.273]
[1736411760640,0.0001706,93099.0,93096.0,0.37729976]
[1736411761671,0.0001706,93099.0,93096.0,0.27729976]
[1736411762029,0.0001702,93107.0,93106.0,0.3958]
[1736411762030,8e-07,93107.0,93106.0,0.3958]
[1736411762230,0.00015141,93107.0,93106.0,0.64857976]
[1736411762431,4.1e-07,93107.0,93106.0,0.77587952]
[1736411762663,4.1e-07,93107.0,93106.0,0.57587952]
[1736411762910,4.1e-07,93107.0,93106.0,0.29159952]
[1736411763276,4.1e-07,93107.0,93106.0,0.44159952]
[1736411763914,4.1e-07,93107.0,93106.0,0.45059952]
[1736411764321,4.1e-07,93107.0,93106.0,0.44159952]
[1736411764519,4.1e-07,93107.0,93106.0,0.45059952]
[1736411764719,4.1e-07,93107.0,93106.0,0.47359952]
[1736411765132,4.1e-07,93107.0,93106.0,0.67359952]
[1736411765336,4.1e-07,93107.0,93106.0,0.71189529]
[1736411765509,0.0140641,93182.0,93117.0,0.564783]
[1736411765510,8.1e-07,93118.0,93117.0,0.564783]
[1736411765692,8.1e-07,93118.0,93117.0,1.34813553]
[1736411765894,8.1e-07,93118.0,93117.0,1.43093553]
[1736411766314,0.05,93161.0,93160.0,0.214684]
[1736411766524,0.05050225,93161.0,93160.0,0.46898376]
[1736411766718,0.05050225,93161.0,93160.0,0.41526864]
[1736411766920,0.05050225,93161.0,93160.0,0.31898376]
[1736411767131,0.04550225,93161.0,93160.0,0.31898376]
[1736411767598,0.04550225,93161.0,93154.0,0.214697]
[1736411767789,0.04550225,93161.0,93156.0,0.214693]
[1736411768031,0.04550225,93161.0,93160.0,0.001]
[1736411768232,0.04550225,93161.0,93160.0,0.03299928]
[1736411768858,0.04550225,93161.0,93160.0,0.001]
[1736411769359,0.214684,93160.0,93141.0,0.214727]
[1736411769581,0.214684,93160.0,93143.0,0.214723]
[1736411769837,0.214684,93160.0,93145.0,0.214718]
[1736411770033,0.12440225,93161.0,93146.0,0.214716]
[1736411770241,0.04550225,93161.0,93147.0,0.03297498]
[1736411770458,0.04550225,93161.0,93160.0,0.214684]
[1736411770694,0.04550225,93161.0,93160.0,0.46898376]
[1736411771935,0.04550225,93161.0,93160.0,0.59198376]
[1736411772563,0.0001702,93172.0,93171.0,0.364659]
[1736411772733,0.00032078,93172.0,93171.0,0.77065876]
[1736411772964,0.00032078,93172.0,93171.0,0.80385313]
[1736411773353,0.00032078,93172.0,93171.0,0.77065876]
[1736411773594,0.00032078,93172.0,93171.0,0.81625876]
[1736411773777,0.0140641,93182.0,93181.0,0.314636]
[1736411773923,0.0140641,93182.0,93181.0,0.65637576]
[1736411775154,0.0140641,93182.0,93181.0,0.75637576]
[1736411775446,1e-07,93182.0,93181.0,0.75637576]
[1736411775626,1e-07,93182.0,93181.0,0.57323552]
[1736411776453,1e-07,93182.0,93181.0,0.57923552]
[1736411776674,1e-07,93182.0,93181.0,0.61123552]
[1736411777108,1e-07,93182.0,93181.0,0.59623552]
[1736411777320,1e-07,93182.0,93181.0,0.69623552]
[1736411777534,0.07819081,93229.0,93183.0,0.1]
[1736411777746,0.0495,93230.0,93210.0,0.214567]
[1736411777944,0.214539,93223.0,93210.0,0.10429976]
[1736411778146,0.21467652,93229.0,93206.0,0.214577]
[1736411778298,0.21467652,93229.0,93207.0,0.10429976]
[1736411778508,0.214527,93228.0,93208.0,0.214573]
[1736411778712,0.00015052,93229.0,93209.0,0.15871745]
[1736411778945,0.00015052,93229.0,93218.0,0.21455]
[1736411779143,0.00015052,93229.0,93224.0,0.214535]
[1736411779436,0.00015052,93229.0,93225.0,0.10429976]
[1736411780032,0.00015052,93229.0,93226.0,0.214532]
[1736411780232,0.00015052,93229.0,93228.0,0.214527]
[1736411780436,0.00015052,93229.0,93228.0,0.31882676]
[1736411781224,0.00015052,93229.0,93228.0,0.46882676]
[1736411781428,0.00015052,93229.0,93228.0,0.54782676]
[1736411782622,0.00015052,93229.0,93228.0,0.54682676]
[1736411782763,0.00015052,93229.0,93228.0,0.65112652]
[1736411782982,0.00015052,93229.0,93228.0,0.65412652]
[1736411783216,0.00015052,93229.0,93228.0,0.47082676]
[1736411783414,0.00015052,93229.0,93228.0,0.46882676]
[1736411783570,0.00015052,93229.0,93228.0,0.47782676]
[1736411783777,0.00015052,93229.0,93228.0,0.48082676]
[1736411784412,0.00015052,93229.0,93228.0,0.55242676]
[1736411784617,0.00015052,93229.0,93228.0,0.65672652]
[1736411785026,0.00015052,93229.0,93228.0,0.65372652]
[1736411785269,0.00015052,93229.0,93228.0,0.77672652]
[1736411785473,0.00015052,93229.0,93228.0,0.77772652]
[1736411785686,0.00015052,93229.0,93228.0,0.65872652]
[1736411785881,0.00015052,93229.0,93228.0,0.65772652]
[1736411786134,0.00015052,93229.0,93228.0,0.65372652]
[1736411786332,0.00015052,93229.0,93228.0,0.65672652]
[1736411786546,0.00015052,93229.0,93228.0,0.66472652]
[1736411786746,0.00015052,93229.0,93228.0,0.65672652]
[1736411786924,0.00015052,93229.0,93228.0,0.65372652]
[1736411787229,0.00015052,93229.0,93228.0,0.79072652]
[1736411787430,0.00015052,93229.0,93228.0,0.88172652]
[1736411788303,5.2e-07,93229.0,93228.0,0.89072652]
[1736411788520,5.2e-07,93229.0,93228.0,0.88572652]
[1736411788722,11.32513752,93234.0,93233.0,0.35]
[1736411788926,11.23933352,93234.0,93233.0,0.55859952]
[1736411789370,11.23933352,93234.0,93233.0,0.47729976]
[1736411789371,10.78848604,93234.0,93233.0,0.47729976]
[1736411789568,10.78848604,93234.0,93233.0,0.55319976]
[1736411789955,10.76703504,93234.0,93233.0,0.55319976]
[1736411790111,10.70268204,93234.0,93233.0,0.55319976]
[1736411790534,10.68123104,93234.0,93233.0,0.56219976]
[1736411790744,10.68123104,93234.0,93233.0,0.55319976]
[1736411791054,10.68123104,93234.0,93233.0,0.53059976]
[1736411792071,10.68123104,93234.0,93233.0,0.53759976]
[1736411792474,10.68123104,93234.0,93233.0,0.58759976]
[1736411792902,10.63832904,93234.0,93233.0,0.58759976]
[1736411793102,10.63832904,93234.0,93233.0,0.53759976]
[1736411793313,10.63832904,93234.0,93233.0,0.58759976]
[1736411793510,10.57397604,93234.0,93233.0,0.58759976]
[1736411793914,10.42018328,93234.0,93233.0,0.58759976]
[1736411794123,10.40735193,93234.0,93233.0,0.70099976]
[1736411794385,10.32925193,93234.0,93233.0,1.29429976]
[1736411794583,10.24106673,93234.0,93233.0,0.74949976]
[1736411794733,10.16296673,93234.0,93233.0,0.78252138]
[1736411794931,10.05571173,93234.0,93233.0,0.78252138]
[1736411795143,9.92147978,93234.0,93233.0,0.77552138]
[1736411795363,9.92147978,93234.0,93233.0,0.74949976]
[1736411795806,9.90002878,93234.0,93233.0,0.74949976]
[1736411796008,9.85712678,93234.0,93233.0,0.74249976]
[1736411796212,9.75249441,93234.0,93233.0,0.75149976]
[1736411796411,9.74167639,93234.0,93233.0,0.75149976]
[1736411796585,9.51536401,93234.0,93233.0,0.74249976]
[1736411796785,9.27717103,93234.0,93233.0,0.62309976]
[1736411797056,9.27717103,93234.0,93233.0,0.66511233]
[1736411797057,9.15576486,93234.0,93233.0,0.66511233]
[1736411797185,9.1425063,93234.0,93233.0,0.65611233]
[1736411797397,9.1425063,93234.0,93233.0,2.15611233]
[1736411797571,9.1425063,93234.0,93233.0,0.44671233]
[1736411797805,9.1210553,93234.0,93233.0,0.60905976]
[1736411798010,9.0352513,93234.0,93233.0,0.60905976]
[1736411798249,9.0352513,93234.0,93233.0,0.62705976]
[1736411798480,9.0352513,93234.0,93233.0,0.61805976]
[1736411798886,8.93011128,93234.0,93233.0,0.60905976]
[1736411799097,8.90866028,93234.0,93233.0,0.65109663]
[1736411799734,8.90866028,93234.0,93233.0,0.64209663]
[1736411799937,8.7947114,93234.0,93233.0,0.66009663]
[1736411800085,8.7732604,93234.0,93233.0,0.66009663]
[1736411800731,8.7732604,93234.0,93233.0,0.65109663]
[1736411800933,8.6660054,93234.0,93233.0,0.66009663]
[1736411801293,8.6660054,93234.0,93233.0,0.64209663]
[1736411801498,8.12910382,93234.0,93233.0,0.65109663]
[1736411801738,8.12910382,93234.0,93233.0,0.66009663]
[1736411801920,8.08620182,93234.0,93233.0,0.59173663]
[1736411802124,8.00681251,93234.0,93233.0,0.65109663]
[1736411802336,7.94755186,93234.0,93233.0,0.66009663]
[1736411802543,7.8620009,93234.0,93233.0,0.66009663]
[1736411802919,7.8190989,93234.0,93233.0,0.66009663]
[1736411803120,7.68212582,93234.0,93233.0,0.66009663]
[1736411803371,7.6713895,93234.0,93233.0,0.66009663]
[1736411803573,7.41511508,93234.0,93233.0,0.66009663]
[1736411803773,7.33683679,93234.0,93233.0,0.66009663]
[1736411803994,7.29393479,93234.0,93233.0,0.66009663]
[1736411804200,7.22634042,93234.0,93233.0,0.66009663]
[1736411804403,7.10765756,93234.0,93233.0,0.64209663]
[1736411804727,6.34962203,93234.0,93233.0,1.03008163]
[1736411804872,6.1596253,93234.0,93233.0,0.78511663]
[1736411805032,6.13413253,93234.0,93233.0,0.78511663]
[1736411805238,6.13413253,93234.0,93233.0,0.77611663]
[1736411805478,6.13413253,93234.0,93233.0,0.95109663]
[1736411805678,6.05460253,93234.0,93233.0,0.95109663]
[1736411805909,5.99024953,93234.0,93233.0,0.90369663]
[1736411806155,5.94734753,93234.0,93233.0,0.89469663]
[1736411806358,5.93875046,93234.0,93233.0,0.94469663]
[1736411806567,5.90006366,93234.0,93233.0,0.94469663]
[1736411806956,5.85716166,93234.0,93233.0,0.95369663]
[1736411807489,5.47649668,93234.0,93233.0,0.87373663]
[1736411807700,5.47649668,93234.0,93233.0,0.77269663]
[1736411807929,5.41214368,93234.0,93233.0,0.70173663]
[1736411808147,5.36924168,93234.0,93233.0,0.85273663]
[1736411808355,5.36924168,93234.0,93233.0,0.92269663]
[1736411808572,5.36924168,93234.0,93233.0,0.92169663]
[1736411808990,5.30488868,93234.0,93233.0,0.92169663]
[1736411809422,5.26198668,93234.0,93233.0,0.94469663]
[1736411809654,5.26198668,93234.0,93233.0,0.40973663]
[1736411809868,5.21908468,93234.0,93233.0,0.43069663]
[1736411810090,5.19763368,93234.0,93233.0,0.48069663]